bitfinex/quotes_BTCUSD_20251117
["timestamp","ask_amount","ask_price","bid_price","bid_amount"]
[1763396398577,3.57470304,93450.0,93449.0,74.78070104]
[1763396398777,3.57170304,93450.0,93449.0,74.78070104]
[1763396399192,3.44388969,93450.0,93449.0,74.78070104]
[1763396399642,0.44188969,93450.0,93449.0,74.78070104]
[1763396399863,3.44388969,93450.0,93449.0,74.78070104]
[1763396400279,3.44388969,93450.0,93449.0,74.78046773]
[1763396400485,3.44388969,93450.0,93449.0,74.68210269]
[1763396400678,3.44188969,93450.0,93449.0,74.68210269]
[1763396400902,3.44188969,93450.0,93449.0,74.25310269]
[1763396401100,3.44388969,93450.0,93449.0,74.25310269]
[1763396401620,3.46152663,93450.0,93449.0,74.25310269]
[1763396401825,3.46152663,93450.0,93449.0,74.23390952]
[1763396402062,3.4476444,93450.0,93449.0,74.23390952]
[1763396402392,3.4456444,93450.0,93449.0,74.14001445]
[1763396402593,3.4476444,93450.0,93449.0,74.14001445]
[1763396402795,3.42800746,93450.0,93449.0,74.13329861]
[1763396403034,3.42800746,93450.0,93449.0,74.10883967]
[1763396403834,3.44764349,93450.0,93449.0,73.67154192]
[1763396404038,3.46461192,93450.0,93449.0,73.641486]
[1763396404261,3.46461192,93450.0,93449.0,73.61189204]
[1763396404262,3.45700548,93450.0,93449.0,73.61189204]
[1763396404518,3.45700548,93450.0,93449.0,73.57693972]
[1763396404728,0.45900548,93450.0,93449.0,70.37367854]
[1763396404941,0.45900548,93450.0,93449.0,67.82367854]
[1763396404942,1.4659614,93450.0,93449.0,67.82367854]
[1763396405149,4.4639614,93450.0,93449.0,67.82367854]
[1763396405347,4.4649614,93450.0,93449.0,67.82359245]
[1763396405550,4.46386162,93450.0,93449.0,67.82359245]
[1763396405791,4.42044288,93450.0,93449.0,67.82359245]
[1763396406006,3.09004288,93450.0,93449.0,67.82359245]
[1763396406218,3.13046162,93450.0,93449.0,67.82359245]
[1763396406417,3.45346162,93450.0,93449.0,67.82359245]
[1763396406629,3.45746162,93450.0,93449.0,67.82359245]
[1763396406983,3.45346162,93450.0,93449.0,67.82359245]
[1763396407189,3.45646162,93450.0,93449.0,67.82359245]
[1763396407389,3.45946162,93450.0,93449.0,67.82359245]
[1763396408073,3.45646162,93450.0,93449.0,67.82359245]
[1763396408689,3.45846162,93450.0,93449.0,67.80611958]
[1763396409145,0.4595614,93450.0,93449.0,67.80611958]
[1763396409347,3.4595614,93450.0,93449.0,67.80611958]
[1763396410118,1.4669614,93450.0,93449.0,67.80611958]
[1763396410328,4.4639614,93450.0,93449.0,67.80594742]
[1763396410567,4.4649614,93450.0,93449.0,67.77844742]
[1763396410768,4.4679614,93450.0,93449.0,67.77844742]
[1763396411617,2.4470614,93450.0,93449.0,62.74534742]
[1763396412200,2.44596162,93450.0,93449.0,62.74534742]
[1763396412395,4.46686162,93450.0,93449.0,62.74534742]
[1763396413014,4.46386162,93450.0,93449.0,62.74534742]
[1763396413234,4.46386162,93450.0,93449.0,62.73001852]
[1763396413446,4.46786162,93450.0,93449.0,62.73001852]
[1763396413662,4.46786162,93450.0,93449.0,62.70601852]
[1763396413870,4.46486162,93450.0,93449.0,62.62097723]
[1763396414075,4.46486162,93450.0,93449.0,62.60739003]
[1763396414076,4.4659614,93450.0,93449.0,62.60739003]
[1763396414296,4.5819614,93450.0,93449.0,62.60739003]
[1763396414502,4.4689614,93450.0,93449.0,62.60739003]
[1763396414909,4.4649614,93450.0,93449.0,62.5926809]
[1763396415115,4.4649614,93450.0,93449.0,62.57348773]
[1763396415316,3.5733614,93450.0,93449.0,59.60888773]
[1763396415487,3.5341614,93450.0,93449.0,59.56848773]
[1763396415721,3.5311614,93450.0,93449.0,59.56848773]
[1763396415872,3.53006162,93450.0,93449.0,59.48931586]
[1763396416078,3.5351614,93450.0,93449.0,59.47012269]
[1763396416241,3.5351614,93450.0,93449.0,59.44730338]
[1763396416242,3.62905236,93450.0,93449.0,59.44730338]
[1763396416458,3.5348614,93450.0,93449.0,57.35876852]
[1763396417109,3.5348614,93450.0,93449.0,57.35447812]
[1763396417110,3.5388614,93450.0,93449.0,57.35447812]
[1763396417320,4.46856162,93450.0,93449.0,57.35447812]
[1763396417530,4.46456162,93450.0,93449.0,57.33528495]
[1763396417935,4.46056162,93450.0,93449.0,57.25611308]
[1763396418151,4.46456162,93450.0,93449.0,57.25611308]
[1763396418350,4.42514288,93450.0,93449.0,57.25601308]
[1763396418596,4.42514288,93450.0,93449.0,57.23345344]
[1763396418597,4.10214288,93450.0,93449.0,57.23345344]
[1763396419016,3.09474288,93450.0,93449.0,57.23345344]
[1763396419426,3.09474288,93450.0,93449.0,57.23062163]
[1763396419649,3.09074288,93450.0,93449.0,57.23062163]
[1763396419896,3.14783454,93450.0,93449.0,57.23062163]
[1763396420107,3.13816162,93450.0,93449.0,57.13065714]
[1763396420321,3.13416162,93450.0,93449.0,57.13065714]
[1763396420536,3.13416162,93450.0,93449.0,57.08841366]
[1763396420740,3.13616162,93450.0,93449.0,57.08841366]
[1763396421150,4.14356162,93450.0,93449.0,57.05615827]
[1763396421354,4.13756162,93450.0,93449.0,57.05615827]
[1763396421565,4.14056162,93450.0,93449.0,57.02390288]
[1763396421782,4.14356162,93450.0,93449.0,56.96778178]
[1763396421972,3.45616162,93450.0,93449.0,56.73872759]
[1763396422175,3.45316162,93450.0,93449.0,56.73872759]
[1763396422372,3.45616162,93450.0,93449.0,56.73872759]
[1763396422580,3.43652559,93450.0,93449.0,56.73872759]
[1763396422787,3.07010685,93450.0,93449.0,56.73857759]
[1763396423191,3.06710685,93450.0,93449.0,56.73857759]
[1763396423421,3.39010685,93450.0,93449.0,56.64021254]
[1763396423662,3.39310685,93450.0,93449.0,56.64021254]
[1763396423832,3.07010685,93450.0,93449.0,56.64021254]
[1763396424054,3.06710685,93450.0,93449.0,56.64021254]
[1763396424309,3.06910685,93450.0,93449.0,56.62968387]
[1763396424549,3.39510685,93450.0,93449.0,56.60522529]
[1763396424927,0.07210685,93450.0,93449.0,56.60522529]
[1763396425126,0.20110698,93450.0,93449.0,56.60522529]
[1763396425368,0.20110698,93450.0,93449.0,56.6018944]
[1763396425506,0.07110685,93450.0,93449.0,56.6018944]
[1763396425707,0.18751407,93450.0,93449.0,56.6018944]
[1763396425940,0.18136407,93450.0,93449.0,56.6018944]
[1763396426176,0.06136289,93450.0,93449.0,56.6018944]
[1763396426384,0.05936289,93450.0,93449.0,56.59680505]
[1763396426579,0.06351289,93450.0,93449.0,56.59680505]
[1763396426779,0.06036289,93450.0,93449.0,56.59680505]
[1763396426987,0.04558492,93450.0,93449.0,56.59680505]
[1763396427194,0.04226718,93450.0,93449.0,56.59680505]
[1763396427612,0.04013088,93450.0,93449.0,56.59680505]
[1763396427818,0.13324862,93450.0,93449.0,56.59680505]
[1763396428019,0.02694542,93450.0,93449.0,56.59680505]
[1763396428223,0.02694542,93450.0,93449.0,56.69627505]
[1763396428431,0.02190946,93450.0,93449.0,56.79994443]
[1763396428685,0.02031785,93450.0,93449.0,56.84336317]
[1763396429098,0.01686865,93450.0,93449.0,56.73969379]
[1763396429315,0.01586865,93450.0,93449.0,56.69627505]
[1763396429527,0.00044093,93461.0,93449.0,56.69627505]
[1763396429734,0.00044093,93461.0,93460.0,0.06582]
[1763396429953,0.01691625,93461.0,93460.0,0.06582]
[1763396430168,0.00044093,93461.0,93449.0,56.59680505]
[1763396430388,0.00044093,93461.0,93451.0,0.04341874]
[1763396430600,0.01742704,93461.0,93460.0,0.0612683]
[1763396430833,0.00999999,93490.0,93461.0,0.04341874]
[1763396431053,0.00999999,93490.0,93479.0,0.06582]
[1763396431054,4.409e-05,93490.0,93479.0,0.06582]
[1763396431271,4.409e-05,93490.0,93489.0,0.04839]
[1763396431489,0.01684992,93490.0,93480.0,0.02008759]
[1763396431705,0.04224675,93490.0,93478.0,0.04839]
[1763396431923,0.00999999,93480.0,93469.0,0.04839]
[1763396432347,0.20999999,93480.0,93469.0,0.04839]
[1763396432571,0.00999999,93480.0,93469.0,0.063176]
[1763396432792,0.00999999,93480.0,93470.0,0.02009331]
[1763396433025,0.04880393,93490.0,93479.0,0.06582]
[1763396433262,0.04880393,93490.0,93471.0,0.09947]
[1763396433263,0.04880393,93490.0,93489.0,0.06582]
[1763396433478,0.01660126,93490.0,93489.0,0.20870874]
[1763396434170,0.01660126,93490.0,93489.0,0.04341874]
[1763396434384,0.01660126,93490.0,93489.0,0.20870874]
[1763396434802,0.01660126,93490.0,93489.0,0.06582]
[1763396435036,0.01660126,93490.0,93489.0,0.04341874]
[1763396435238,0.01660126,93490.0,93469.0,0.04839]
[1763396435239,0.01660126,93490.0,93478.0,0.02008623]
[1763396435450,0.06610126,93490.0,93478.0,0.02008623]
[1763396435666,0.0495,93479.0,93462.0,0.0200882]
[1763396435874,0.03533,93489.0,93451.0,0.04839]
[1763396436086,0.03533,93489.0,93463.0,0.02009625]
[1763396436514,0.04971,93488.0,93452.0,0.10366938]
[1763396437276,0.04971,93488.0,93453.0,0.04341874]
[1763396437753,0.03548,93454.0,93453.0,0.04341874]
[1763396438262,0.0495,93480.0,93453.0,0.22631321]
[1763396438474,0.03533,93489.0,93454.0,0.10366938]
[1763396438681,0.0495,93488.0,93454.0,0.10366938]
[1763396438935,0.0495,93488.0,93455.0,0.02009779]
[1763396439144,0.0495,93488.0,93455.0,0.01880348]
[1763396439343,0.0495,93488.0,93456.0,0.10366938]
[1763396439749,0.03555,93457.0,93456.0,0.10366938]
[1763396440161,0.03555,93457.0,93456.0,0.14708812]
[1763396440364,0.03555,93466.0,93457.0,0.04341874]
[1763396440863,0.03533,93489.0,93459.0,0.04341874]
[1763396441002,0.03533,93489.0,93466.0,0.04341874]
[1763396441187,0.03533,93489.0,93468.0,0.04341874]
[1763396441426,0.03533,93489.0,93470.0,0.04341874]
[1763396441610,0.01655717,93490.0,93489.0,0.04341874]
[1763396441815,0.03219283,93517.0,93489.0,0.12932261]
[1763396442042,0.03219283,93517.0,93491.0,0.04341874]
[1763396442244,0.03219283,93517.0,93516.0,0.09180874]
[1763396442245,0.0487547,93517.0,93516.0,0.09180874]
[1763396442466,0.01019999,93550.0,93516.0,0.15757874]
[1763396442705,0.00033241,93550.0,93517.0,0.14288874]
[1763396442929,0.01941321,93549.0,93517.0,0.14288874]
[1763396443166,0.00033241,93550.0,93519.0,0.04341874]
[1763396443167,0.01941321,93548.0,93519.0,0.04341874]
[1763396443422,0.01941321,93547.0,93519.0,0.04341874]
[1763396443648,0.01941321,93547.0,93518.0,0.12517487]
[1763396443649,0.01941321,93546.0,93521.0,0.04341874]
[1763396443873,0.01941321,93545.0,93521.0,0.04341874]
[1763396444098,0.01723133,93550.0,93523.0,0.04341874]
[1763396444317,0.01939139,93549.0,93525.0,0.04341874]
[1763396444546,0.01723133,93550.0,93525.0,0.04341874]
[1763396444779,0.01938784,93549.0,93523.0,0.04341874]
[1763396444990,0.01723133,93550.0,93523.0,0.14288874]
[1763396445213,0.01937213,93549.0,93523.0,0.14288874]
[1763396445413,0.01723133,93550.0,93549.0,0.15326874]
[1763396445628,0.00999999,93560.0,93524.0,0.11732936]
[1763396445840,0.01938061,93559.0,93526.0,0.04341874]
[1763396446040,0.01938061,93558.0,93526.0,0.04341874]
[1763396446247,0.01938061,93557.0,93528.0,0.04341874]
[1763396446453,0.01938061,93556.0,93528.0,0.04341874]
[1763396446654,0.01938061,93555.0,93528.0,0.04341874]
[1763396446856,0.01938061,93554.0,93527.0,0.01617481]
[1763396447231,0.01,93548.0,93500.0,0.00999999]
[1763396447377,0.02097,93528.0,93502.0,0.09947]
[1763396447582,0.01936898,93527.0,93502.0,0.09947]
[1763396447930,0.01936898,93526.0,93492.0,0.09947]
[1763396448130,0.03097,93528.0,93496.0,0.04839]
[1763396448131,0.02936898,93525.0,93496.0,0.04839]
[1763396448344,0.01936898,93524.0,93496.0,0.04839]
[1763396448564,0.01936898,93523.0,93496.0,0.04839]
[1763396448698,0.01936898,93523.0,93496.0,0.14786]
[1763396448891,0.01936898,93523.0,93498.0,0.04341874]
[1763396449133,0.01936898,93523.0,93497.0,0.01644231]
[1763396449134,0.0495,93522.0,93497.0,0.01644231]
[1763396449360,0.01938797,93521.0,93489.0,0.09947]
[1763396449738,4.407e-05,93524.0,93489.0,0.09947]
[1763396449739,0.01938797,93520.0,93490.0,0.7177097]
[1763396449888,0.01938797,93519.0,93490.0,0.72770969]
[1763396450054,4.407e-05,93524.0,93523.0,0.15762874]
[1763396450257,4.407e-05,93524.0,93523.0,0.04341874]
[1763396450680,4.407e-05,93524.0,93507.0,0.04341874]
[1763396450876,4.407e-05,93524.0,93509.0,0.04341874]
[1763396451076,4.407e-05,93524.0,93507.0,0.04341874]
[1763396451778,4.407e-05,93524.0,93506.0,0.04839]
[1763396451779,4.407e-05,93524.0,93509.0,0.04341874]
[1763396452001,4.407e-05,93524.0,93511.0,0.04341874]
[1763396452167,4.407e-05,93524.0,93513.0,0.04341874]
[1763396452359,4.407e-05,93524.0,93523.0,0.11023874]
[1763396452767,4.407e-05,93524.0,93523.0,0.20970874]
[1763396453544,4.407e-05,93524.0,93523.0,0.20870874]
[1763396453750,4.407e-05,93524.0,93523.0,0.20970874]
[1763396454192,4.407e-05,93524.0,93523.0,0.20870874]
[1763396454391,4.407e-05,93524.0,93523.0,0.22957961]
[1763396454707,4.407e-05,93524.0,93523.0,0.23057961]
[1763396454916,4.407e-05,93524.0,93523.0,0.23157961]
[1763396455140,0.03217297,93581.0,93530.0,0.00999999]
[1763396455344,0.0322171,93581.0,93532.0,0.04341874]
[1763396455550,0.0322171,93581.0,93541.0,0.04341874]
[1763396455757,4.413e-05,93581.0,93541.0,0.04341874]
[1763396455969,4.413e-05,93581.0,93580.0,0.15360874]
[1763396456444,4.413e-05,93581.0,93580.0,0.24592874]
[1763396456654,4.413e-05,93581.0,93580.0,0.04341874]
[1763396456853,4.413e-05,93581.0,93580.0,0.05268761]
[1763396457271,4.413e-05,93581.0,93575.0,0.04341874]
[1763396457678,4.413e-05,93581.0,93580.0,0.001]
[1763396457887,4.413e-05,93581.0,93520.0,0.66601444]
[1763396458089,0.04539,93580.0,93530.0,0.00999999]
[1763396458294,0.13897,93580.0,93521.0,0.07152844]
[1763396458486,0.13897,93580.0,93530.0,0.00999999]
[1763396458672,0.09358,93579.0,93575.0,0.001]
[1763396459027,4.413e-05,93581.0,93575.0,0.001]
[1763396459875,4.413e-05,93581.0,93565.0,0.09232]
[1763396460490,0.04539,93566.0,93545.0,0.09232]
[1763396460713,0.04539,93580.0,93546.0,0.05365074]
[1763396460933,4.413e-05,93581.0,93565.0,0.06092]
[1763396461132,4.413e-05,93581.0,93546.0,0.05365074]
[1763396461287,0.09358,93580.0,93546.0,0.05365074]
[1763396461505,0.09358,93580.0,93537.0,0.09232]
[1763396461705,0.11357998,93580.0,93537.0,0.09232]
[1763396461945,0.11357998,93580.0,93538.0,0.09232]
[1763396461946,0.01,93574.0,93538.0,0.09232]
[1763396462226,0.11357998,93580.0,93539.0,0.04341874]
[1763396462227,0.12357998,93580.0,93539.0,0.04341874]
[1763396462457,0.04539,93573.0,93539.0,0.04341874]
[1763396462672,0.04539,93573.0,93545.0,0.001]
[1763396462884,0.09358,93572.0,93545.0,0.001]
[1763396463093,0.00999999,93570.0,93520.0,0.68429095]
[1763396463309,0.0195088,93569.0,93536.0,0.04341874]
[1763396463587,0.0195088,93568.0,93538.0,0.04341874]
[1763396463762,0.0195088,93567.0,93538.0,0.04341874]
[1763396463874,0.0195088,93566.0,93540.0,0.04341874]
[1763396464130,0.0195088,93565.0,93546.0,0.04341874]
[1763396464333,0.02019998,93590.0,93551.0,0.04341874]
[1763396464334,0.0195088,93564.0,93551.0,0.04341874]
[1763396464636,0.0002,93590.0,93553.0,0.04341874]
[1763396464637,0.0195088,93563.0,93553.0,0.04341874]
[1763396464857,0.0002,93590.0,93580.0,0.03043]
[1763396465095,0.01958522,93581.0,93580.0,0.03043]
[1763396465297,0.01958522,93581.0,93580.0,0.12275]
[1763396465498,0.01958522,93581.0,93580.0,0.135025]
[1763396466119,4.413e-05,93581.0,93580.0,0.17844374]
[1763396466337,0.0002,93590.0,93581.0,0.04341874]
[1763396466546,0.0002,93600.0,93591.0,0.04341874]
[1763396466754,0.01649428,93600.0,93591.0,0.04341874]
[1763396466959,0.0002,93600.0,93593.0,0.04341874]
[1763396467395,0.0165693,93600.0,93595.0,0.04341874]
[1763396467598,0.0002,93600.0,93595.0,0.04341874]
[1763396467799,0.0002,93600.0,93597.0,0.04341874]
[1763396468260,0.0012,93610.0,93599.0,0.04341874]
[1763396468543,0.0012,93610.0,93607.0,0.04341874]
[1763396468695,0.0002,93620.0,93607.0,0.04341874]
[1763396468904,0.0002,93620.0,93611.0,0.04341874]
[1763396469111,0.0002,93630.0,93613.0,0.04341874]
[1763396469313,0.0002,93630.0,93621.0,0.04341874]
[1763396469527,0.0002,93630.0,93629.0,0.07875874]
[1763396469730,0.0002,93630.0,93629.0,0.17107874]
[1763396469928,0.0002,93630.0,93629.0,0.04341874]
[1763396470157,0.01969058,93630.0,93606.0,0.04025]
[1763396470386,0.01969058,93630.0,93606.0,0.00891639]
[1763396470387,0.34249058,93629.0,93606.0,0.00891639]
[1763396470530,0.01949058,93628.0,93599.0,0.03834]
[1763396470713,0.01949058,93627.0,93600.0,0.09232]
[1763396470914,0.01949058,93626.0,93600.0,0.09232]
[1763396471214,0.323,93629.0,93600.0,0.09232]
[1763396471215,0.01949058,93625.0,93601.0,0.04341874]
[1763396471352,0.01948948,93624.0,93603.0,0.04341874]
[1763396471570,0.01948948,93624.0,93599.0,0.03547224]
[1763396471571,0.11306948,93623.0,93599.0,0.03547224]
[1763396471769,0.04527,93624.0,93599.0,0.03547224]
[1763396471770,0.01948948,93622.0,93599.0,0.03547224]
[1763396471973,0.01948948,93621.0,93599.0,0.00013224]
[1763396472174,0.01,93619.0,93599.0,0.00013224]
[1763396472397,0.04539,93600.0,93599.0,0.00013224]
[1763396472602,0.06487948,93600.0,93599.0,0.00013224]
[1763396472823,0.12306948,93600.0,93599.0,0.00013224]
[1763396473085,0.11306948,93600.0,93599.0,0.00013224]
[1763396473707,0.11306948,93600.0,93559.0,0.04025]
[1763396473708,0.20999999,93590.0,93538.0,0.09232]
[1763396473905,0.12306948,93600.0,93548.0,0.00044106]
[1763396473906,0.04539,93560.0,93548.0,0.00044106]
[1763396474125,0.01948948,93559.0,93548.0,0.00044106]
[1763396474335,0.02948948,93558.0,93548.0,0.00044106]
[1763396474487,0.01948948,93557.0,93548.0,0.00044106]
[1763396474696,0.01,93549.0,93548.0,0.00044106]
[1763396475112,0.44606948,93549.0,93548.0,0.00044106]
[1763396475318,0.01,93537.0,93496.0,0.04025]
[1763396475468,0.00999999,93530.0,93496.0,0.04029413]
[1763396475678,0.01948948,93529.0,93496.0,4.413e-05]
[1763396475874,0.01948948,93528.0,93497.0,0.09232]
[1763396476097,0.01948948,93527.0,93496.0,4.413e-05]
[1763396476312,0.34248948,93526.0,93496.0,4.413e-05]
[1763396476513,0.01948948,93525.0,93496.0,4.413e-05]
[1763396476750,0.00999999,93520.0,93496.0,4.413e-05]
[1763396476942,0.01,93518.0,93496.0,4.413e-05]
[1763396477147,0.01948948,93517.0,93496.0,4.413e-05]
[1763396477406,0.323,93518.0,93496.0,4.413e-05]
[1763396477407,0.01948948,93516.0,93496.0,4.413e-05]
[1763396477640,0.323,93518.0,93497.0,0.01323341]
[1763396477641,0.01948948,93515.0,93497.0,0.01323341]
[1763396477845,0.01948948,93514.0,93496.0,4.413e-05]
[1763396478055,0.01948948,93513.0,93496.0,4.413e-05]
[1763396478267,0.04583,93497.0,93496.0,4.413e-05]
[1763396478471,0.06531948,93497.0,93496.0,4.413e-05]
[1763396478670,0.01948948,93497.0,93496.0,4.413e-05]
[1763396479542,0.03694499,93497.0,93496.0,4.413e-05]
[1763396480559,0.03694499,93497.0,93496.0,0.00104413]
[1763396480889,0.12983499,93497.0,93496.0,4.413e-05]
[1763396481293,0.12983499,93497.0,93496.0,0.00104413]
[1763396481294,0.03694499,93497.0,93496.0,0.00104413]
[1763396482485,0.17867499,93497.0,93496.0,0.00104413]
[1763396482704,0.17867499,93497.0,93496.0,4.413e-05]
[1763396482934,0.17867499,93497.0,93496.0,0.00104413]
[1763396483470,0.17867499,93497.0,93496.0,0.00204413]
[1763396483676,0.16121948,93497.0,93496.0,0.00204413]
[1763396483883,0.16121948,93497.0,93496.0,0.00104413]
[1763396484090,0.20838373,93497.0,93496.0,4.413e-05]
[1763396484348,0.18807078,93497.0,93496.0,0.00104413]
[1763396484598,0.18807078,93497.0,93496.0,4.13e-06]
[1763396484729,0.18970978,93497.0,93496.0,4.13e-06]
[1763396485350,3.18491401,93497.0,93496.0,4.13e-06]
[1763396485560,0.00999999,93460.0,93440.0,0.0001327]
[1763396485765,0.04548,93452.0,93451.0,0.00318516]
[1763396486002,0.06496948,93452.0,93451.0,0.00318516]
[1763396486441,0.48693948,93452.0,93451.0,0.00318516]
[1763396487250,0.48693948,93452.0,93451.0,0.00418516]
[1763396487867,0.53010948,93452.0,93451.0,0.00418516]
[1763396488644,0.34248948,93452.0,93451.0,0.00318516]
[1763396488851,0.01948948,93452.0,93451.0,0.03852516]
[1763396489051,0.09897,93481.0,93451.0,0.13774516]
[1763396489264,0.01933446,93480.0,93454.0,0.04341874]
[1763396489498,0.01933418,93479.0,93455.0,0.10366938]
[1763396489702,0.0193343,93478.0,93455.0,0.10366938]
[1763396489913,0.09897,93478.0,93455.0,0.10366938]
[1763396490684,0.03963,93479.0,93455.0,0.10366938]
[1763396490821,0.03963,93479.0,93456.0,0.10366938]
[1763396491025,0.09897,93478.0,93456.0,0.10366938]
[1763396491231,0.09897,93478.0,93451.0,0.00318516]
[1763396491438,0.03963,93479.0,93451.0,0.00318516]
[1763396491644,0.09897,93478.0,93451.0,0.00318516]
[1763396492270,0.03963,93479.0,93451.0,0.00318516]
[1763396492724,0.09897,93489.0,93453.0,0.04341874]
[1763396492921,0.09897,93489.0,93452.0,0.09922]
[1763396492922,0.1159053,93499.0,93460.0,0.00999999]
[1763396493875,0.1159053,93499.0,93454.0,0.10366938]
[1763396494095,0.01,93487.0,93451.0,0.00318516]
[1763396494345,0.01,93477.0,93451.0,0.00318516]
[1763396494524,0.09897,93476.0,93451.0,0.00318516]
[1763396495223,0.01,93467.0,93451.0,0.00318516]
[1763396495447,0.09897,93466.0,93451.0,0.00318516]
[1763396496287,0.09897,93466.0,93451.0,0.03108257]
[1763396496679,0.001,93476.0,93452.0,0.09922]
[1763396496926,0.001,93476.0,93475.0,0.02778]
[1763396497352,0.01,93499.0,93475.0,0.02778]
[1763396497802,0.03220043,93506.0,93462.0,0.04947]
[1763396497803,0.01,93495.0,93462.0,0.04947]
[1763396498041,0.05355441,93535.0,93475.0,0.09922]
[1763396498253,0.01756111,93499.0,93476.0,0.010922]
[1763396498467,0.01,93507.0,93462.0,0.04947]
[1763396498670,0.01,93502.0,93470.0,0.00999999]
[1763396498888,0.03219407,93521.0,93471.0,0.04341874]
[1763396499126,0.01,93524.0,93480.0,0.00999999]
[1763396499395,0.01861448,93519.0,93480.0,0.00999999]
[1763396499618,0.01,93514.0,93471.0,0.14263874]
[1763396499842,0.001,93519.0,93471.0,0.14263874]
[1763396499843,0.01790521,93519.0,93472.0,0.09922]
[1763396500103,0.01890521,93519.0,93481.0,0.04341874]
[1763396500342,0.01790521,93519.0,93481.0,0.04355115]
[1763396500575,0.01690521,93519.0,93481.0,0.00013241]
[1763396501028,0.001,93519.0,93481.0,0.00013241]
[1763396501550,0.01,93523.0,93481.0,0.02021425]
[1763396501732,0.05338385,93524.0,93481.0,0.00013241]
[1763396501733,0.01885176,93519.0,93481.0,0.00013241]
[1763396502005,0.01949518,93518.0,93481.0,0.00013241]
[1763396502194,0.0073879,93517.0,93481.0,0.00013241]
[1763396502406,0.01949518,93516.0,93481.0,0.02021461]
[1763396502597,0.01949518,93515.0,93481.0,0.02021461]
[1763396502801,1.01739999,93580.0,93481.0,0.02021461]
[1763396502802,0.01949518,93514.0,93483.0,0.04341874]
[1763396503007,0.01949518,93513.0,93490.0,0.00999999]
[1763396503224,0.01949518,93512.0,93491.0,0.02007915]
[1763396503378,0.01949518,93511.0,93490.0,0.00999999]
[1763396503590,0.01949518,93510.0,93481.0,0.00013241]
[1763396503789,0.01949518,93509.0,93481.0,0.00013241]
[1763396504048,0.01949518,93508.0,93481.0,0.00013241]
[1763396504249,0.01949518,93507.0,93481.0,0.00013241]
[1763396504454,0.01949518,93506.0,93481.0,0.02021818]
[1763396504762,0.01949518,93505.0,93481.0,0.00013241]
[1763396504908,0.01949518,93504.0,93481.0,0.00013241]
[1763396505105,0.01726475,93519.0,93481.0,0.00013241]
[1763396505106,0.01949518,93503.0,93481.0,0.00013241]
[1763396505321,0.01949518,93502.0,93481.0,0.00013241]
[1763396505521,0.03488,93482.0,93481.0,0.00013241]
[1763396505721,0.01949518,93482.0,93481.0,0.00013241]
[1763396506244,0.01949518,93493.0,93481.0,0.00013241]
[1763396507834,0.01949518,93493.0,93483.0,0.04341874]
[1763396508031,0.03666873,93519.0,93484.0,0.01627711]
[1763396508032,0.01949518,93492.0,93484.0,0.01627711]
[1763396508220,0.01949518,93491.0,93485.0,0.02008526]
[1763396508468,0.01949518,93490.0,93481.0,0.00013241]
[1763396508670,0.01949518,93489.0,93481.0,0.00013241]
[1763396508877,0.01949518,93488.0,93481.0,0.00013241]
[1763396509050,0.03547,93505.0,93481.0,0.01741923]
[1763396509051,0.01949518,93487.0,93481.0,0.01741923]
[1763396509263,0.01949518,93486.0,93482.0,0.113]
[1763396509500,0.01949518,93485.0,93483.0,0.0359864]
[1763396509700,0.01949518,93484.0,93483.0,0.02008748]
[1763396509905,0.01949518,93502.0,93481.0,0.00013241]
[1763396510105,0.01949518,93501.0,93481.0,0.00013241]
[1763396510305,0.01949518,93500.0,93481.0,0.00013241]
[1763396510545,0.00094,93482.0,93481.0,0.00013241]
[1763396510763,0.02043518,93482.0,93481.0,0.00013241]
[1763396510965,0.11344518,93482.0,93481.0,0.00013241]
[1763396511295,0.01949518,93482.0,93481.0,0.00013241]
[1763396511501,0.01949518,93493.0,93481.0,0.00013241]
[1763396511872,0.01949518,93492.0,93481.0,0.00013241]
[1763396512076,0.00094,93482.0,93481.0,0.00013241]
[1763396512263,0.11344518,93482.0,93481.0,0.00013241]
[1763396512592,0.01949518,93482.0,93481.0,0.00013241]
[1763396512788,0.08157518,93482.0,93481.0,0.00013241]
[1763396512994,0.11405518,93482.0,93481.0,0.00013241]
[1763396513195,0.01949518,93482.0,93481.0,0.00013241]
[1763396513436,0.09394,93492.0,93481.0,0.00013241]
[1763396513636,0.01960343,93491.0,93481.0,0.00013241]
[1763396513842,0.01960343,93490.0,93481.0,0.00013241]
[1763396514055,0.09394,93501.0,93481.0,0.00013241]
[1763396514056,0.01960343,93489.0,93481.0,0.00013241]
[1763396514260,0.01960343,93488.0,93481.0,0.00013241]
[1763396514476,0.01960343,93487.0,93481.0,0.01870241]
[1763396514684,0.01960343,93486.0,93482.0,0.02008733]
[1763396514882,0.01960343,93485.0,93482.0,0.02008733]
[1763396515084,0.01960343,93484.0,93482.0,0.02008733]
[1763396515284,0.01960343,93483.0,93482.0,0.02008733]
[1763396515689,0.01960343,93500.0,93482.0,0.02008805]
[1763396515902,0.01960343,93499.0,93482.0,0.02008805]
[1763396516065,0.01960343,93498.0,93481.0,0.00013241]
[1763396516266,0.01960343,93497.0,93481.0,0.00013241]
[1763396516472,0.00094,93482.0,93481.0,0.00013241]
[1763396516929,0.11355343,93482.0,93481.0,0.00013241]
[1763396517151,0.98611755,93491.0,93481.0,0.00013241]
[1763396520527,0.01,93486.0,93481.0,0.00013241]
[1763396520677,0.01,93486.0,93451.0,0.03064164]
[1763396520896,0.07456718,93490.0,93452.0,0.11694932]
[1763396521099,0.98611755,93480.0,93452.0,0.11694932]
[1763396521367,0.98611755,93462.0,93453.0,0.10366938]
[1763396521485,0.98611755,93462.0,93451.0,0.00318516]
[1763396521486,0.04365,93452.0,93451.0,0.00318516]
[1763396522098,0.04365,93452.0,93440.0,0.0001327]
[1763396522299,0.04409009,93452.0,93440.0,0.0001327]
[1763396524405,0.98611755,93460.0,93450.0,0.02010619]
[1763396524406,0.87492714,93460.0,93450.0,0.02010619]
[1763396524610,0.87492714,93460.0,93451.0,0.02010437]
[1763396524847,0.86492714,93460.0,93451.0,0.02010437]
[1763396525048,0.98611755,93461.0,93451.0,0.02010437]
[1763396525254,0.07456718,93487.0,93451.0,0.02010437]
[1763396525412,0.05329685,93493.0,93460.0,0.04583]
[1763396525618,0.98611755,93470.0,93460.0,0.04583]
[1763396525828,0.98611755,93470.0,93461.0,0.02009864]
[1763396526086,0.04046,93469.0,93462.0,0.00659286]
[1763396526299,0.98611755,93470.0,93450.0,4.407e-05]
[1763396526300,0.98611755,93470.0,93451.0,0.09685]
[1763396526463,0.98611755,93470.0,93454.0,0.02009997]
[1763396527029,0.98611755,93470.0,93451.0,0.09685]
[1763396527269,0.98611755,93461.0,93450.0,4.407e-05]
[1763396528597,0.04046,93478.0,93450.0,0.02014847]
[1763396528598,0.98611755,93460.0,93450.0,0.02014847]
[1763396528808,0.98611755,93460.0,93450.0,0.12381785]
[1763396529030,0.98611755,93460.0,93454.0,0.001]
[1763396529244,0.01964208,93459.0,93451.0,0.09685]
[1763396529470,0.04046,93478.0,93452.0,0.02010415]